bitfinex/quotes_ETHUSD_20220202
["timestamp","ask_amount","ask_price","bid_price","bid_amount"]
[1643799761823,0.86795535,2761.8,2761.1,0.00170781]
[1643799761824,0.84560183,2761.4,2761.1,0.00170781]
[1643799762025,0.86795535,2761.8,2761.1,0.71794845]
[1643799762225,0.86795535,2761.8,2761.2,0.71794845]
[1643799762226,0.81326824,2761.7,2761.2,0.71794845]
[1643799762427,0.84745361,2761.6,2761.3,0.71624064]
[1643799762664,0.84745361,2761.6,2761.2,0.00170781]
[1643799762665,0.81326824,2761.5,2761.2,0.00170781]
[1643799762870,0.81326824,2761.5,2760.9,1.44272659]
[1643799762871,0.81326824,2761.5,2761.0,0.71796945]
[1643799763471,0.81326824,2761.5,2761.1,0.00170781]
[1643799764671,0.34362066,2761.4,2761.1,0.00170781]
[1643799764872,0.81326824,2761.3,2761.1,0.00170781]
[1643799765071,0.81326824,2761.3,2760.9,0.71796945]
[1643799765273,0.81326824,2761.3,2761.0,0.71626164]
[1643799765474,0.81326824,2761.3,2761.1,0.71626164]
[1643799765772,0.81326824,2761.3,2761.2,0.71626164]
[1643799765973,0.84745361,2761.6,2761.2,0.71626164]
[1643799765974,0.81326824,2761.5,2761.2,0.71626164]
[1643799766179,0.81326824,2761.5,2761.3,0.69018978]
[1643799766414,0.81326824,2761.5,2761.2,0.00170781]
[1643799766613,0.41902759,2761.4,2761.2,0.00170781]
[1643799766911,0.81326824,2761.3,2760.8,0.00170781]
[1643799767311,0.81326824,2761.3,2760.8,0.69182746]
[1643799767716,0.81198297,2761.3,2760.8,0.69182746]
[1643799767915,2.90470896,2761.6,2760.8,0.69182746]
[1643799768217,1.94992175,2761.5,2760.8,0.69182746]
[1643799768823,0.42481894,2761.4,2760.8,0.69182746]
[1643799770014,2.03675361,2761.6,2760.8,0.69182746]
[1643799770265,4.13641791,2761.6,2760.8,0.69182746]
[1643799770866,4.14377044,2761.6,2760.8,0.69182746]
[1643799771065,2.65715802,2761.6,2760.8,0.69182746]
[1643799771267,4.40319865,2761.6,2760.8,0.69182746]
[1643799773673,1.1893,2761.6,2760.8,0.69182746]
[1643799773914,3.1342667,2761.6,2760.8,0.69182746]
[1643799774518,3.1408128,2761.6,2760.8,0.69182746]
[1643799774715,1.1893,2761.6,2760.8,0.70460679]
[1643799774915,1.1893,2761.6,2760.8,0.01448714]
[1643799775818,1.55548015,2761.6,2760.8,0.01448714]
[1643799776016,1.94479248,2761.5,2760.8,0.00170781]
[1643799776317,1.95003933,2761.5,2760.8,0.00170781]
[1643799776516,1.92851577,2761.5,2760.8,0.00170781]
[1643799776721,1.55548015,2761.6,2760.8,0.00170781]
[1643799778669,1.91797925,2761.5,2760.8,0.00170781]
[1643799778869,1.953125,2761.5,2760.8,0.00170781]
[1643799779469,1.92363775,2761.5,2760.8,0.00170781]
[1643799779870,1.55548015,2761.6,2760.8,0.00170781]
[1643799780071,1.94021739,2761.5,2760.8,0.00170781]
[1643799780474,1.55548015,2761.6,2760.8,0.00170781]
[1643799782215,1.91807044,2761.5,2760.8,0.00170781]
[1643799782815,1.55548015,2761.6,2760.8,0.00170781]
[1643799783418,1.55548015,2761.6,2760.8,0.69095074]
[1643799784017,1.55548015,2761.6,2760.8,0.00170781]
[1643799784218,3.50711821,2761.6,2760.8,0.00170781]
[1643799784423,1.55548015,2761.6,2760.8,0.00170781]
[1643799785019,3.51062578,2761.6,2760.8,0.00170781]
[1643799785867,3.51062578,2761.6,2760.8,0.69095074]
[1643799786266,1.55548015,2761.6,2760.8,0.00170781]
[1643799786468,1.1893,2761.6,2760.8,0.69095074]
[1643799787768,0.63910926,2761.5,2760.8,1.58161731]
[1643799787972,0.63910926,2761.5,2760.9,0.89066657]
[1643799788169,0.63910926,2761.5,2761.0,0.89066657]
[1643799788370,0.63910926,2761.5,2761.1,0.89066657]
[1643799788568,0.42781438,2761.4,2761.2,0.89066657]
[1643799788772,0.42781438,2761.4,2761.3,0.89066657]
[1643799789014,0.65483641,2761.4,2761.3,0.89066657]
[1643799789213,0.65483641,2761.6,2761.3,0.89066657]
[1643799789413,0.65483641,2761.5,2761.4,0.87502873]
[1643799789622,0.55875708,2761.1,2760.8,1.56597816]
[1643799789816,0.1809,2761.7,2760.9,0.85866578]
[1643799790016,0.68174699,2761.6,2761.0,0.85866578]
[1643799790216,1.04955215,2761.6,2761.1,0.85866578]
[1643799790418,1.04955215,2761.6,2760.8,0.68924293]
[1643799790419,0.68174699,2761.5,2761.2,0.85866578]
[1643799790616,0.68174699,2761.5,2761.3,0.85866578]
[1643799790817,0.68174699,2761.5,2761.4,0.85866578]
[1643799799121,0.86711782,2761.7,2761.4,0.85866578]
[1643799799122,0.64336481,2761.7,2761.4,0.85866578]
[1643799799325,2.45760913,2761.9,2761.4,0.01287977]
[1643799799722,3.2485,2762.1,2761.4,0.01287977]
[1643799799723,3.4294,2762.1,2761.4,0.01287977]
[1643799800772,0.1809,2762.1,2761.7,0.7105254]
[1643799800970,0.1809,2762.1,2761.4,0.01287977]
[1643799801173,3.55346622,2762.3,2761.4,0.01287977]
[1643799801369,4.74786622,2762.3,2761.4,0.01287977]
[1643799801771,2.84736626,2762.2,2761.4,0.01287977]
[1643799801973,0.1809,2762.1,2761.5,0.93429465]
[1643799802573,0.32149726,2762.0,2761.5,0.93429465]
[1643799803573,0.1809,2762.1,2761.5,0.93429465]
[1643799804849,0.42793753,2762.0,2761.5,0.93429465]
[1643799805853,0.42793753,2762.0,2761.2,3.449]
[1643799806250,0.39593983,2761.5,2761.2,3.449]
[1643799806453,2.83214743,2762.1,2761.2,0.1807]
[1643799806653,4.04710452,2762.1,2761.2,0.1807]
[1643799806852,4.15817452,2762.1,2761.2,0.87021908]
[1643799807052,1.82040709,2762.0,2761.2,0.87021908]
[1643799807254,2.01435312,2761.9,2761.2,0.68951908]
[1643799807453,2.90889804,2761.9,2761.2,0.68951908]
[1643799807879,3.81435424,2761.9,2761.2,0.68951908]
[1643799808107,0.32553569,2761.6,2761.2,0.68951908]
[1643799810878,0.68724621,2761.9,2761.2,0.68951908]
[1643799811279,2.64770039,2761.9,2761.2,0.68951908]
[1643799811722,0.68724621,2761.8,2761.2,0.68951908]
[1643799811922,0.34874604,2761.6,2761.2,0.68951908]
[1643799813231,2.62206275,2761.9,2761.1,1.3911]
[1643799813432,0.68724621,2761.8,2761.1,1.3911]
[1643799815368,0.3758894,2761.6,2761.1,2.0640743]
[1643799815771,0.3758894,2761.6,2761.1,0.8538743]
[1643799816270,0.68724621,2761.9,2761.1,0.8538743]
[1643799816667,0.68724621,2761.9,2761.1,1.54359347]
[1643799816868,0.68724621,2761.9,2761.1,0.8538743]
[1643799817069,0.34540758,2761.8,2761.1,0.8538743]
[1643799817274,3.32575534,2762.0,2761.1,1.54359347]
[1643799817470,0.68724621,2762.0,2761.2,0.68971917]
[1643799817875,2.62405415,2762.0,2761.2,0.68971917]
[1643799818075,0.68724621,2762.0,2761.1,1.54359347]
[1643799818279,0.42309824,2761.9,2761.1,1.54359347]
[1643799818474,0.60399824,2761.9,2761.1,1.54359347]
[1643799819118,0.1809,2761.9,2761.1,1.54359347]
[1643799819318,0.63810843,2761.8,2761.2,1.58228629]
[1643799819522,0.63810843,2761.8,2761.3,0.89256712]
[1643799819723,0.63810843,2761.8,2761.4,0.89256712]
[1643799819925,0.63810843,2761.8,2761.5,0.89256712]
[1643799820124,0.63810843,2761.8,2761.6,0.89256712]
[1643799820323,0.63810843,2761.8,2761.7,0.89256712]
[1643799820527,0.63810843,2761.8,2761.2,1.5822154]
[1643799820724,0.63810843,2761.8,2761.3,0.89249898]
[1643799820930,0.63810843,2761.8,2761.4,0.89249898]
[1643799821124,0.63810843,2761.8,2761.5,0.89249898]
[1643799821325,0.1809,2762.0,2761.6,0.89249898]
[1643799821326,0.63810843,2761.7,2761.6,0.89249898]
[1643799821528,0.63810843,2761.9,2761.2,1.58221815]
[1643799822426,0.44032652,2761.7,2761.2,0.89249898]
[1643799822677,0.63810843,2761.6,2761.3,0.89249898]
[1643799822876,0.63810843,2761.6,2761.1,1.81691917]
[1643799822877,0.63810843,2761.6,2761.4,0.89249898]
[1643799823078,0.63810843,2761.6,2761.5,0.89249898]
[1643799825479,0.63810843,2761.8,2761.5,0.89249898]
[1643799825680,0.63810843,2761.7,2761.6,0.89249898]
[1643799826523,0.63810843,2761.8,2761.6,0.89249898]
[1643799826722,0.4809,2762.0,2761.2,0.68971917]
[1643799826723,0.63810843,2761.7,2761.2,0.68971917]
[1643799826923,0.63810843,2761.6,2761.2,0.87897937]
[1643799827126,0.63810843,2761.9,2761.2,0.87897937]
[1643799827322,0.65099161,2761.8,2761.2,0.87897937]
[1643799827523,0.65099161,2761.9,2761.2,0.87897937]
[1643799828327,0.65099161,2761.9,2761.6,0.75256915]
[1643799828632,0.65099161,2761.9,2761.2,0.68971917]
[1643799828826,0.65099161,2761.9,2761.2,1.56937277]
[1643799829826,0.65099161,2761.9,2761.4,0.93378131]
[1643799830028,0.65099161,2761.9,2761.5,0.8796536]
[1643799830269,0.65099161,2761.9,2761.5,2.9053635]
[1643799830471,0.65099161,2761.9,2761.6,0.8796536]
[1643799830869,0.68724621,2762.2,2761.6,0.8796536]
[1643799830870,0.65099161,2761.8,2761.6,0.8796536]
[1643799831068,0.1809,2762.1,2761.6,0.8796536]
[1643799831069,0.65099161,2761.7,2761.6,0.8796536]
[1643799831276,0.6489636,2761.7,2761.6,0.8796536]
[1643799831469,0.1809,2762.1,2761.6,0.8796536]
[1643799831673,0.64899451,2762.0,2761.7,0.8796536]
[1643799831873,0.1809,2761.9,2761.8,0.8796536]
[1643799832073,0.1809,2761.9,2761.5,0.88146075]
[1643799832074,0.82989451,2761.9,2761.5,0.88146075]
[1643799832275,0.64894909,2761.8,2761.6,0.88146352]
[1643799832477,0.1809,2762.0,2761.7,0.88146352]
[1643799832677,0.64894153,2761.9,2761.8,0.88146352]
[1643799832875,0.64894153,2761.9,2761.5,0.88145703]
[1643799833075,0.64894153,2761.9,2761.6,0.8814583]
[1643799833274,0.64894153,2761.9,2761.4,0.93378131]
[1643799833275,0.64894153,2761.9,2761.7,0.8814583]
[1643799833476,0.64894153,2761.9,2761.8,0.88146952]
[1643799833677,0.64894153,2761.9,2761.5,0.88147371]
[1643799833925,0.64894153,2761.9,2761.4,0.93378131]
[1643799833926,0.64894153,2761.9,2761.6,0.88147299]
[1643799834122,0.64894153,2761.9,2761.7,0.88147299]
[1643799834327,0.64894153,2761.8,2761.4,0.93378131]
[1643799834525,0.64894153,2761.7,2761.5,0.88149669]
[1643799834730,0.64894153,2761.6,2761.5,0.88149669]
[1643799834929,1.33618774,2761.9,2761.5,0.88149669]
[1643799835126,1.33618774,2761.9,2761.1,1.1272]
[1643799835328,1.59270341,2761.8,2761.2,0.88409262]
[1643799835531,0.68724621,2761.7,2761.2,0.88409262]
[1643799836127,1.56987891,2761.7,2761.2,0.88409262]
[1643799836828,0.9054452,2761.6,2761.2,0.88409262]
[1643799838476,0.39607005,2761.4,2761.2,0.88409262]
[1643799838874,0.39607005,2761.4,2761.0,0.1809]
[1643799839476,1.30155435,2761.4,2761.0,0.1809]
[1643799840181,0.9054843,2761.4,2761.0,0.1809]
[1643799840777,0.9054843,2761.4,2760.9,0.1809]
[1643799842027,0.9054843,2761.4,2760.8,1.61016019]
[1643799842834,0.9054843,2761.4,2760.9,1.80556566]
[1643799843632,0.9054843,2761.4,2760.8,1.61016019]
[1643799843835,0.9054843,2761.4,2760.8,0.92044102]
[1643799844638,1.2054843,2761.4,2760.8,0.1809]
[1643799845038,1.2054843,2761.4,2760.6,1.16120781]
[1643799845039,0.68724621,2761.3,2760.6,1.16120781]
[1643799845279,1.89282041,2761.3,2760.6,1.16120781]
[1643799845475,0.98724621,2761.3,2760.6,1.16120781]
[1643799846076,0.69454881,2761.1,2760.6,1.16120781]
[1643799846277,0.99454881,2761.1,2760.6,0.00170781]
[1643799846676,1.90019121,2761.1,2760.6,0.00170781]
[1643799848481,1.92962962,2761.0,2760.6,0.00170781]
[1643799848682,2.83532392,2761.0,2760.4,0.18260781]
[1643799848955,1.92962962,2761.0,2760.4,0.18260781]
[1643799849255,0.99454881,2761.1,2760.4,0.18260781]
[1643799849653,0.69454881,2761.1,2760.4,0.18260781]
[1643799850055,0.9056943,2760.9,2760.4,0.18260781]
[1643799851655,0.9056943,2760.9,2760.4,0.00170781]
[1643799853684,0.69454881,2761.1,2760.4,0.00170781]
[1643799854285,0.69454881,2761.1,2760.6,0.90564]
[1643799855084,1.312,2761.4,2760.6,0.90564]
[1643799855289,1.312,2761.4,2760.7,3.62223]
[1643799855290,1.612,2761.4,2760.7,3.62223]
[1643799855486,0.70870923,2761.3,2760.8,1.72417038]
[1643799855686,0.70870923,2761.3,2760.9,1.72416038]
[1643799855885,0.70870923,2761.3,2761.0,0.81859038]
[1643799856084,0.70870923,2761.3,2761.0,1.66168308]
[1643799856285,0.70870923,2761.2,2761.1,0.81859038]
[1643799856526,0.70870923,2761.4,2761.1,0.81859038]
[1643799856727,0.70870923,2761.3,2761.1,0.81859038]
[1643799856928,0.70870923,2761.2,2761.0,0.90556]
[1643799857126,0.4809,2761.6,2761.1,0.81851063]
[1643799857331,0.70862673,2761.5,2761.1,0.81851063]
[1643799858136,0.70862673,2761.5,2761.1,2.62958063]
[1643799858137,0.70711917,2761.5,2761.1,2.62958063]
[1643799858333,0.1809,2761.6,2761.5,0.75705545]
[1643799858540,2.45830231,2761.8,2761.3,0.68971917]
[1643799858734,0.1809,2762.4,2761.5,4.55]
[1643799859033,0.18363246,2762.6,2762.3,0.90681641]
[1643799859237,0.68724621,2762.8,2762.3,0.90681641]
[1643799859431,0.86814621,2762.8,2762.3,0.90681641]
[1643799859640,0.91495709,2763.2,2762.6,6.0]
[1643799859846,0.00273576,2763.0,2762.7,2.70415]
[1643799860034,0.00273576,2763.0,2762.7,0.7039]
[1643799860482,0.00273576,2763.7,2762.7,0.7039]
[1643799860884,1.02602709,2763.6,2762.7,0.1809]
[1643799861082,0.91495709,2763.4,2762.4,2.0]
[1643799861281,0.91495709,2763.3,2762.3,2.1809]
[1643799861483,0.91495709,2763.3,2762.3,0.1809]
[1643799861683,0.91495709,2763.3,2762.3,1.04826455]
[1643799861684,0.67631508,2763.1,2762.3,1.04826455]
[1643799861882,0.34647408,2763.0,2762.3,0.86736455]
[1643799862086,0.52737408,2763.0,2762.3,0.86736455]
[1643799862283,0.53010984,2763.0,2762.3,0.86736455]
[1643799862487,0.53010984,2763.0,2762.3,0.81736455]
[1643799863486,0.83010984,2763.0,2762.3,0.81736455]
[1643799863687,0.48363576,2763.0,2762.3,0.81736455]
[1643799864526,0.18363576,2763.0,2762.3,0.81736455]
[1643799865133,0.18363576,2763.0,2762.1,0.1809]
[1643799865329,0.48363576,2763.0,2762.1,0.1809]
[1643799865728,0.18363576,2763.0,2762.1,0.1809]
[1643799866127,0.48363576,2763.0,2762.1,0.1809]
[1643799866328,0.18363576,2763.0,2762.1,0.1809]
[1643799866528,0.93423934,2762.9,2762.2,0.80748676]
[1643799869184,0.93423934,2762.9,2762.3,8.74139543]
[1643799869789,1.61825339,2762.9,2762.3,8.74139543]
[1643799870395,0.68401405,2762.8,2762.3,8.74139543]
[1643799870586,0.79508405,2762.7,2762.3,8.74139543]
[1643799870785,1.09508405,2762.7,2762.3,8.74139543]
[1643799870984,1.09508405,2762.7,2762.0,0.1809]
[1643799871430,0.00273576,2762.6,2762.0,0.1809]
[1643799872029,0.11107,2762.5,2761.6,0.1809]
[1643799872231,0.00273576,2762.4,2761.6,0.1809]
[1643799872835,0.00273576,2762.4,2761.8,0.72849651]
[1643799873435,0.68558012,2762.4,2761.8,0.72849651]
[1643799873636,0.68558012,2762.4,2761.6,0.1809]
[1643799873839,1.59092022,2762.4,2761.6,0.1809]
[1643799874237,0.11107,2762.3,2761.6,0.1809]
[1643799874440,0.00273576,2762.2,2761.6,0.1809]
[1643799874638,0.1809,2762.1,2761.6,0.1809]
[1643799874837,0.00273576,2762.2,2761.6,0.1809]
[1643799874838,0.39143648,2761.9,2761.6,0.1809]
[1643799875038,0.9054205,2762.1,2761.3,0.69822097]
[1643799875279,0.00273576,2762.0,2761.3,0.69822097]
[1643799875485,0.11380576,2762.0,2761.3,0.69822097]
[1643799875688,0.00273576,2762.0,2761.3,0.69822097]
[1643799875884,0.00273576,2762.1,2761.3,0.69822097]
[1643799876387,0.00273576,2762.1,2761.8,0.75503689]
[1643799876584,0.18363576,2762.6,2761.8,0.75503689]
[1643799877186,0.37200097,2762.5,2761.8,0.75503689]
[1643799877584,0.18363576,2762.6,2761.8,0.75503689]
[1643799877785,0.00273576,2762.6,2761.8,0.75503689]
[1643799877985,0.1809,2762.7,2761.8,0.75503689]
[1643799877986,0.18363576,2762.7,2761.8,0.75503689]
[1643799878387,0.75910293,2762.7,2761.8,0.75503689]
[1643799878586,0.93807427,2762.6,2761.8,0.75503689]
[1643799878786,0.57820293,2762.5,2761.8,0.75503689]
[1643799879041,0.57546717,2762.4,2761.8,0.75503689]
[1643799879238,0.57546717,2762.3,2761.8,0.75503689]
[1643799879436,0.57546717,2762.2,2761.8,0.75503689]
[1643799879637,0.57546717,2762.1,2761.8,0.75503689]
[1643799880037,0.00273576,2762.6,2761.8,0.75503689]
[1643799880436,0.5782815,2762.6,2761.8,0.75503689]
[1643799881640,0.5782815,2762.6,2761.9,2.78614598]
[1643799881842,0.5782815,2762.6,2762.0,0.94660444]
[1643799882067,0.00273576,2762.6,2762.0,0.94660444]
[1643799882242,0.57554574,2762.7,2762.1,0.1809]
[1643799882243,0.5782815,2762.7,2762.1,0.1809]
[1643799882678,0.5782815,2762.7,2761.9,0.1809]
[1643799882883,0.5782815,2762.7,2762.0,0.94647875]
[1643799883084,0.5782815,2762.7,2761.8,1.08599]
[1643799883389,0.5782815,2762.7,2761.9,0.94615873]
[1643799883582,0.5782815,2762.7,2762.0,0.1809]
[1643799883982,0.5782815,2762.7,2762.3,0.82321482]
[1643799884183,0.57554574,2762.7,2762.0,0.1809]
[1643799884586,0.57554574,2762.6,2762.0,0.1809]
[1643799884783,0.57554574,2762.5,2762.0,0.1809]
[1643799884988,0.57554574,2762.4,2762.0,0.1809]
[1643799885186,0.57554574,2762.3,2762.1,0.67558376]
[1643799885387,0.00273576,2762.8,2762.1,0.67558376]
[1643799885991,0.83758752,2762.7,2762.1,0.67558376]
[1643799886187,0.56435341,2762.6,2762.1,0.67558376]
[1643799886424,0.56435341,2762.5,2762.0,0.1809]
[1643799886626,0.56435341,2762.4,2762.0,0.1809]
[1643799886825,0.56435341,2762.3,2762.0,0.1809]
[1643799887026,0.56435341,2762.2,2761.9,0.1809]
[1643799887225,0.00273576,2762.6,2761.9,0.1809]
[1643799887428,0.56217629,2762.6,2761.9,0.1809]
[1643799887831,0.55944053,2762.5,2761.9,0.1809]
[1643799888030,0.00273576,2762.6,2761.9,0.1809]
[1643799888231,0.55944053,2762.7,2761.9,0.1809]
[1643799888431,0.55944053,2762.6,2761.9,0.1809]
[1643799888636,0.55944053,2762.5,2761.8,1.08599]
[1643799888832,0.55944053,2762.4,2762.1,0.68957089]
[1643799889034,0.55944053,2762.3,2762.1,0.68957089]
[1643799889231,0.55944053,2762.2,2762.1,0.68957089]
[1643799889431,0.56217629,2762.7,2762.1,0.68957089]
[1643799889631,0.55944053,2762.6,2762.1,0.68957089]
[1643799889835,0.55944053,2762.5,2762.1,0.68957089]
[1643799890033,0.55944053,2762.4,2762.1,0.68957089]
[1643799890287,0.00273576,2762.7,2762.1,0.68957089]
[1643799890288,0.55944053,2762.3,2762.1,0.68957089]
[1643799890487,0.55944053,2762.2,2762.1,0.68957089]
[1643799890889,0.00273576,2762.7,2762.1,0.68957089]
[1643799890890,0.56217629,2762.7,2762.1,0.68957089]
[1643799891090,0.56217629,2762.7,2761.8,1.08599]
[1643799891298,0.56217629,2762.7,2761.9,0.96318831]
[1643799892088,0.56217629,2762.7,2762.0,0.3403987]
[1643799892294,0.56217629,2762.7,2762.1,0.96318831]
[1643799892591,0.56217629,2762.7,2761.8,2.0414823]
[1643799892795,0.56217629,2762.7,2761.9,0.96341396]
[1643799893297,0.56217629,2762.7,2762.3,0.74521106]
[1643799893496,0.86491405,2762.9,2762.3,0.74521106]
[1643799893497,0.56217629,2762.8,2762.3,0.74521106]
[1643799893699,0.55944053,2762.7,2762.4,2.78523802]
[1643799893933,0.55944053,2762.6,2762.3,0.74521106]
[1643799894128,0.1809,2763.1,2762.4,0.96315661]
[1643799894129,0.55944053,2762.5,2762.4,0.96315661]
[1643799894733,0.55944053,2762.5,2762.4,2.84125113]
[1643799894935,0.55944053,2762.5,2762.4,0.96315661]
[1643799898688,0.55944053,2762.5,2761.8,4.1623]
[1643799898989,0.55944053,2762.5,2761.9,0.97072305]
[1643799898990,0.55944053,2762.4,2761.9,0.97072305]
[1643799899582,0.55944053,2762.3,2762.0,2.38648088]
[1643799899783,0.00273576,2762.6,2762.2,0.90065262]
[1643799900081,0.5556679,2762.7,2762.3,0.97128881]
[1643799900281,0.5556679,2762.6,2762.3,0.97128881]
[1643799900481,0.5556679,2762.5,2762.3,0.97128881]
[1643799900690,0.5556679,2762.4,2762.3,0.97128881]
[1643799901436,1.23968195,2762.7,2762.3,0.97128881]
[1643799901642,0.5556679,2762.6,2762.3,0.97128881]
[1643799901836,0.68401405,2762.7,2762.3,0.97128881]
[1643799901837,0.5556679,2762.5,2762.3,0.97128881]
[1643799902039,0.5556679,2762.4,2762.3,0.97128881]
[1643799902436,0.68401405,2762.7,2762.3,0.97128881]
[1643799902841,1.23968195,2762.7,2762.3,0.97128881]
[1643799903041,0.5556679,2762.6,2762.3,0.97128881]
[1643799903242,0.5556679,2762.5,2762.3,0.97128881]
[1643799903643,0.5556679,2762.4,2762.3,0.97128881]
[1643799904043,0.68401405,2762.6,2762.3,0.97128881]
[1643799904249,0.68401405,2762.6,2761.8,0.1809]
[1643799904444,0.68674981,2762.6,2762.1,0.9051]
[1643799904644,0.5556679,2762.5,2762.2,0.96340856]
[1643799904845,0.5556679,2762.4,2762.2,1.74757436]
[1643799905045,0.68674981,2762.7,2762.3,0.96340856]
[1643799905583,1.39179017,2762.7,2762.3,0.96340856]
[1643799905783,0.56556458,2762.6,2762.1,0.96340856]
[1643799905983,0.56556458,2762.6,2762.2,0.96344749]
[1643799905984,1.24957863,2762.6,2762.2,0.96344749]
[1643799906184,0.56556458,2762.5,2762.3,0.96344749]
[1643799906486,1.38905441,2762.7,2761.9,0.90516]
[1643799906487,0.56556458,2762.4,2761.9,0.90516]
[1643799906685,1.25231439,2762.6,2762.0,2.13908469]
[1643799906891,0.56556458,2762.5,2762.1,0.96349151]
[1643799907086,0.56556458,2762.4,2762.1,0.96349151]
[1643799907287,0.56556458,2762.3,2762.2,0.96349151]
[1643799907487,0.56556458,2762.3,2762.0,0.96349151]
[1643799907687,0.68401405,2762.6,2762.0,0.96349151]
[1643799907688,0.56556458,2762.2,2762.0,0.96349151]
[1643799907889,0.56556458,2762.1,2762.0,0.96349151]
[1643799909333,0.56556458,2762.1,2762.0,2.84264893]
[1643799909732,0.56556458,2762.1,2762.0,0.96349151]
[1643799909933,0.56556458,2762.1,2762.0,2.77195997]
[1643799910133,0.56556458,2762.1,2762.0,2.77863426]
[1643799910332,0.56556458,2762.1,2762.0,0.96349151]
[1643799912883,0.56556458,2762.1,2762.0,0.96243869]
[1643799914190,0.56556458,2762.1,2758.8,18.3781]
[1643799914191,0.56556458,2762.1,2761.4,4.2782]
[1643799914483,0.68401405,2762.2,2761.4,0.1809]
[1643799914687,0.68401405,2762.1,2761.4,0.1809]
[1643799915082,0.37181623,2762.0,2761.4,0.1809]
[1643799915282,0.89729919,2761.9,2761.4,0.1809]
[1643799917835,0.89729919,2761.9,2761.2,0.81545076]
[1643799918937,0.89729919,2761.9,2761.2,1.31545076]
[1643799919945,0.54251189,2762.0,2761.2,0.81545076]
[1643799920374,0.84251189,2762.0,2761.2,0.81545076]
[1643799920574,1.52652594,2762.0,2761.2,0.81545076]
[1643799921174,2.47511962,2762.0,2761.2,0.81545076]
[1643799921677,2.58618962,2762.0,2761.2,0.81545076]
[1643799921876,0.90546,2761.9,2761.2,0.81545076]
[1643799929784,1.30224784,2761.9,2761.1,3.0098]
[1643799929986,1.95019607,2761.8,2761.1,3.0098]
[1643799930684,0.90546,2761.9,2761.1,3.0098]
[1643799930885,2.96435762,2762.0,2761.4,0.93726]
[1643799931284,2.96435762,2762.0,2761.2,0.1809]
[1643799932130,3.26435762,2762.0,2761.2,0.1809]
[1643799932531,3.37542762,2762.0,2761.2,0.1809]
[1643799932939,0.55672429,2761.9,2761.3,0.96855338]
[1643799933136,1.80339776,2761.9,2761.3,0.96855338]
[1643799933334,0.55672429,2761.8,2761.3,0.96855338]
[1643799933635,2.5024698,2761.8,2761.3,0.96855338]
[1643799933833,0.55672429,2761.7,2761.3,0.96855338]
[1643799935285,0.55672429,2761.7,2761.3,0.96731494]
[1643799936282,1.46222429,2761.7,2761.3,0.96731494]
[1643799936483,0.9055,2761.7,2761.3,0.96731494]
[1643799937487,0.9055,2761.7,2761.1,0.1809]
[1643799938690,1.94749216,2761.6,2761.0,0.18260781]
[1643799938925,0.90557,2761.5,2761.0,0.00170781]
[1643799939326,1.75760396,2761.5,2761.0,0.00170781]
[1643799939527,0.85203396,2761.5,2761.0,0.00170781]
[1643799941834,0.90554,2761.7,2761.0,0.00170781]
[1643799942236,0.90554,2761.7,2761.0,0.90723781]
[1643799946537,0.90554,2761.7,2761.1,0.3]
[1643799947137,0.90071594,2761.7,2761.1,0.3]
[1643799948546,0.90071594,2761.7,2761.0,0.90723781]
[1643799949344,0.90071594,2761.7,2761.3,0.8450841]
[1643799950993,0.90071594,2761.7,2761.0,0.00166586]
[1643799952290,0.90071594,2761.7,2761.0,0.77578298]
[1643799955331,0.58434638,2761.6,2761.1,0.944855]
[1643799955934,0.58434638,2761.5,2761.1,0.944855]
[1643799956133,0.58434638,2761.4,2761.1,0.944855]
[1643799956339,0.58434638,2761.4,2761.1,0.94652086]
[1643799956534,0.1809,2761.8,2761.1,0.94652086]
[1643799956733,0.58447048,2761.7,2761.1,0.94652086]
[1643799958188,0.58447048,2761.6,2761.1,0.94652086]
[1643799958388,2.98402405,2761.9,2761.1,0.94652086]
[1643799958389,0.58447048,2761.5,2761.1,0.94652086]
[1643799958589,2.98402405,2761.9,2761.1,0.94652086]
[1643799958590,0.58447048,2761.8,2761.1,0.94652086]
[1643799958793,0.5855629,2761.7,2761.1,0.94652086]
[1643799958995,0.5855629,2761.6,2761.1,1.6321768]
[1643799959190,0.5855629,2761.5,2761.1,1.6321768]
[1643799959393,0.5855629,2761.4,2761.1,1.6321768]
[1643799959591,0.68401405,2761.8,2761.1,1.6321768]
[1643799959793,1.27019695,2761.8,2761.1,1.6321768]
[1643799960691,1.27019695,2761.8,2761.5,0.76260038]
[1643799960991,1.27019695,2761.8,2761.6,0.94564246]
[1643799961192,1.27019695,2761.8,2761.7,0.94564336]
[1643799961443,1.27019695,2761.8,2761.7,0.94564077]
[1643799961649,0.68401405,2761.8,2761.6,0.94551485]
[1643799961847,0.68401405,2761.8,2761.7,0.94551841]
[1643799962044,0.68401405,2761.8,2761.6,0.94551834]
[1643799962245,0.68401405,2761.8,2761.7,0.94551952]
[1643799962445,0.68401405,2761.8,2761.5,0.76260038]
[1643799962646,0.68401405,2761.8,2761.6,0.94559508]
[1643799962850,0.68401405,2761.8,2761.7,0.94559451]
[1643799963049,0.68401405,2761.8,2761.7,0.9455939]
[1643799963247,0.68401405,2761.8,2761.6,0.94559102]
[1643799963449,0.68401405,2761.8,2761.5,0.76260038]
[1643799963648,0.68401405,2761.8,2761.6,0.94566885]
[1643799963847,0.68401405,2761.8,2761.5,0.76260038]
[1643799964046,0.68401405,2761.8,2761.6,0.94572455]
[1643799964250,0.68401405,2761.8,2761.5,0.76260038]
[1643799964646,0.68401405,2761.8,2761.6,0.94583902]
[1643799964847,0.68401405,2761.8,2761.5,0.76260038]
[1643799964848,0.5861829,2761.7,2761.5,0.76260038]
[1643799965050,0.5861829,2761.6,2761.5,0.76260038]
[1643799965482,0.68401405,2761.8,2761.5,1.7083756]
[1643799965680,0.68401405,2761.8,2761.6,0.94501445]
[1643799965884,0.68401405,2761.8,2761.5,0.76260038]
[1643799966284,0.5861829,2761.7,2761.6,0.94500715]
[1643799966483,0.5861829,2761.7,2761.5,0.76260038]
[1643799966684,0.58639662,2761.6,2761.5,0.76260038]
[1643799967387,0.68401405,2761.9,2761.5,1.70820569]
[1643799967388,1.27041067,2761.9,2761.5,1.70820569]
[1643799967583,0.58639662,2761.8,2761.6,0.94560531]
[1643799967783,1.27041067,2761.9,2761.7,0.94514044]
[1643799967984,0.58639662,2761.8,2761.5,0.76260038]
[1643799968186,0.68401405,2761.9,2761.6,0.94507096]
[1643799968187,1.27041067,2761.9,2761.6,0.94507096]
[1643799968383,1.27041067,2761.9,2761.7,0.94506549]
[1643799968584,1.27041067,2761.9,2761.8,0.94506488]
[1643799968788,1.27041067,2761.9,2761.6,0.94505784]
[1643799969035,0.58639662,2761.8,2761.7,0.94498609]
[1643799969234,0.58639662,2761.8,2761.7,0.94498677]
[1643799969441,0.58639662,2761.8,2761.7,0.9449877]
[1643799969636,0.58639662,2761.8,2761.3,1.174]
[1643799969637,2.17584067,2761.9,2761.6,0.94499515]
[1643799969837,2.17584067,2761.9,2761.3,1.174]
[1643799969838,0.58639662,2761.8,2761.3,1.174]